bitfinex/quotes_ETHUSD_20251230
["timestamp","ask_amount","ask_price","bid_price","bid_amount"]
[1767103504518,2.3652,2967.2,2966.0,2.4585]
[1767103504705,3.60640894,2967.5,2966.0,2.4585]
[1767103504706,0.884,2967.1,2966.0,2.4585]
[1767103505016,2.3652,2967.4,2966.0,2.4585]
[1767103505209,0.884,2967.3,2966.0,2.4585]
[1767103505618,2.3652,2967.8,2966.0,2.4585]
[1767103505821,2.3652,2967.8,2965.9,10.11497352]
[1767103505822,2.3652,2967.8,2966.2,2.4585]
[1767103505988,0.92612016,2967.7,2966.2,2.4585]
[1767103506189,0.884,2967.6,2966.2,2.4585]
[1767103506423,3.2492,2967.6,2966.2,2.4585]
[1767103506718,2.40732299,2967.5,2966.2,2.4585]
[1767103506915,0.884,2967.4,2966.2,2.4585]
[1767103507130,0.3291323,2967.4,2966.2,2.4585]
[1767103507425,2.40731874,2967.8,2966.2,2.4585]
[1767103507587,0.04212016,2967.7,2966.4,2.4585]
[1767103507787,0.80438664,2967.6,2966.5,10.11292767]
[1767103507988,2.40731448,2968.1,2966.6,2.4585]
[1767103508318,0.884,2968.0,2966.6,2.46862196]
[1767103508524,0.884,2968.2,2966.6,2.46862196]
[1767103508816,0.04211448,2968.1,2966.6,2.46862196]
[1767103509029,0.04211022,2968.4,2966.8,0.01012196]
[1767103509197,0.884,2968.3,2967.0,2.4585]
[1767103509515,2.3652,2968.5,2967.0,2.46862196]
[1767103509516,0.884,2968.5,2967.0,2.46862196]
[1767103510290,0.884,2968.5,2967.2,2.4585]
[1767103510291,0.04211022,2968.4,2967.2,2.4585]
[1767103510530,0.04210455,2968.8,2967.2,2.4585]
[1767103511034,0.04210455,2968.8,2967.2,2.46862196]
[1767103511334,0.92610455,2968.8,2967.2,2.46862196]
[1767103511536,0.001,2969.7,2968.3,2.4585]
[1767103511706,0.001,2969.7,2968.5,2.4585]
[1767103512408,0.04208612,2970.1,2968.7,2.46862196]
[1767103512718,0.04208612,2970.1,2969.0,2.4585]
[1767103512719,2.3652,2970.1,2969.0,2.4585]
[1767103512912,2.3652,2969.9,2968.6,9.1956825]
[1767103513103,2.40729037,2969.8,2968.6,9.1956825]
[1767103513301,0.04209037,2969.8,2968.7,2.4585]
[1767103513516,0.884,2970.0,2968.7,2.4585]
[1767103513729,0.04208895,2969.9,2968.7,2.4585]
[1767103513924,0.04208895,2969.9,2968.7,2.46862196]
[1767103514134,0.001,2969.7,2968.7,2.46862196]
[1767103514302,0.001,2969.7,2968.7,2.4585]
[1767103514506,0.001,2969.7,2968.7,5.82697778]
[1767103514507,3.2492,2969.6,2968.7,5.82697778]
[1767103514702,0.3713238,2969.5,2968.7,2.4585]
[1767103514923,0.3213238,2969.5,2968.7,2.4585]
[1767103515430,0.884,2969.4,2968.7,2.4585]
[1767103515606,0.04209746,2969.3,2968.7,2.4585]
[1767103515807,0.04209746,2969.3,2968.4,5.82731327]
[1767103516007,2.40729746,2969.3,2968.1,2.4311]
[1767103516233,0.32912975,2969.2,2968.3,3.36886123]
[1767103516430,0.04210029,2969.1,2968.2,5.80014277]
[1767103516634,0.04210029,2969.1,2968.3,2.4311]
[1767103516827,0.92609746,2969.3,2968.3,2.4311]
[1767103517027,0.04209321,2969.6,2968.3,2.4311]
[1767103517215,0.04209462,2969.5,2968.5,2.4311]
[1767103517412,0.04209321,2969.6,2968.5,2.4311]
[1767103517608,0.001,2969.7,2968.5,2.4311]
[1767103517808,0.04309179,2969.7,2968.5,2.4311]
[1767103518033,0.001,2969.7,2968.5,2.4311]
[1767103518438,0.001,2969.7,2968.6,6.7371825]
[1767103518635,0.001,2970.2,2968.7,2.44122196]
[1767103518825,0.0430847,2970.2,2968.9,2.4311]
[1767103519435,0.0430847,2970.2,2968.9,2.44122196]
[1767103519826,0.04208612,2970.1,2968.9,2.44122196]
[1767103520051,0.001,2970.2,2968.9,2.44122196]
[1767103520247,0.001,2970.2,2969.0,2.4311]
[1767103520461,0.001,2970.6,2968.9,0.01012196]
[1767103520462,0.001,2970.6,2969.5,10.10271087]
[1767103520753,0.001,2970.6,2969.7,2.4311]
[1767103521251,0.001,2970.7,2969.7,2.4311]
[1767103521631,3.36557545,2971.3,2969.7,2.4311]
[1767103521843,1.45834754,2971.2,2969.7,2.4311]
[1767103522348,2.95224754,2971.2,2969.7,2.4311]
[1767103522522,2.3779,2971.0,2969.8,3.36723011]
[1767103523154,2.3779,2970.8,2969.9,2.4311]
[1767103523454,2.3779,2970.8,2969.4,2.4311]
[1767103523628,2.3779,2970.6,2969.0,2.4311]
[1767103523816,2.3779,2970.4,2968.8,2.4311]
[1767103524023,2.3779,2970.4,2969.3,5.79887992]
[1767103524231,0.32619,2970.3,2969.3,3.36777221]
[1767103524527,0.32619,2970.3,2968.9,3.4018534]
[1767103524528,0.32619,2970.3,2969.6,2.4311]
[1767103524749,2.3779,2970.4,2969.3,2.4311]
[1767103524955,2.3779,2970.4,2969.3,5.79883093]
[1767103525151,3.36616794,2970.8,2969.2,0.04380106]
[1767103525319,3.36616794,2970.8,2968.9,0.89412196]
[1767103525320,3.36620998,2970.7,2969.3,0.03367797]
[1767103525525,3.36620998,2970.7,2969.3,3.36772107]
[1767103525526,2.3779,2970.6,2969.3,3.36772107]
[1767103525824,6.73241996,2970.7,2969.2,2.4311]
[1767103525825,2.3779,2970.4,2969.4,3.36767914]
[1767103526030,2.3779,2970.4,2969.2,2.4311]
[1767103526230,2.3779,2970.4,2969.2,5.79890626]
[1767103526450,2.3779,2970.4,2969.3,3.36778173]
[1767103526754,2.3779,2970.0,2968.4,2.4311]
[1767103526958,0.884,2970.0,2968.6,2.4311]
[1767103527152,0.884,2970.1,2968.8,2.44122196]
[1767103527318,2.3779,2970.0,2968.9,2.4311]
[1767103527719,2.3779,2970.0,2968.5,2.4311]
[1767103528346,0.884,2969.9,2968.5,2.4311]
[1767103528544,2.3779,2969.7,2968.5,2.4311]
[1767103529050,2.3779,2969.5,2968.5,5.7997079]
[1767103529241,0.884,2969.4,2968.5,5.7997079]
[1767103529445,0.884,2969.4,2968.5,2.4311]
[1767103529753,2.3779,2969.3,2968.5,5.79980124]
[1767103530049,0.32619,2969.2,2968.5,5.79980124]
[1767103530454,0.885,2969.4,2968.6,2.4311]
[1767103530623,2.3779,2969.3,2968.5,3.36870124]
[1767103531025,2.3779,2969.3,2968.3,9.16896342]
[1767103531224,2.3779,2969.3,2968.4,2.4311]
[1767103531830,0.001,2969.4,2968.4,2.44122196]
[1767103532126,0.001,2969.4,2968.5,2.4311]
[1767103532626,0.001,2969.4,2968.6,2.46478591]
[1767103532960,0.001,2969.4,2968.7,6.73695556]
[1767103533150,0.001,2969.4,2968.8,2.4311]
[1767103534232,0.001,2969.4,2968.9,2.4311]
[1767103534540,2.70409,2969.8,2968.9,2.4311]
[1767103534861,0.69552124,2969.7,2968.9,2.4311]
[1767103535158,0.69552124,2969.7,2968.9,5.79925476]
[1767103535456,0.69552124,2969.7,2969.0,2.4311]
[1767103535661,3.2619,2970.1,2969.0,2.46478137]
[1767103535969,2.3779,2970.1,2969.0,2.46478137]
[1767103536271,6.65541693,2970.5,2969.0,0.884]
[1767103536447,5.74434687,2970.5,2969.1,2.4311]
[1767103536949,2.3779,2970.4,2969.1,2.4311]
[1767103537327,2.3779,2970.2,2969.1,5.79911257]
[1767103537670,3.2619,2970.1,2969.2,2.4311]
[1767103537871,0.32619,2970.0,2969.2,2.4647791]
[1767103538071,1.21019,2970.0,2969.2,2.4311]
[1767103538476,2.5,2970.1,2969.2,2.4647791]
[1767103538767,2.3779,2970.4,2969.2,2.4311]
[1767103539332,2.3779,2970.4,2969.4,2.4311]
[1767103539835,0.001,2970.6,2969.4,2.4311]
[1767103541360,0.001,2970.6,2969.6,2.4311]
[1767103541530,0.001,2970.6,2969.7,2.4311]
[1767103543664,0.001,2970.6,2969.8,2.4311]
[1767103544543,0.001,2970.6,2969.7,3.36726869]
[1767103544544,2.3779,2970.5,2969.3,2.4311]
[1767103544855,2.3779,2970.3,2969.3,2.4311]
[1767103545366,2.3779,2970.3,2969.1,0.884]
[1767103545367,3.2609,2970.3,2969.4,2.4311]
[1767103545539,3.36689,2970.1,2969.4,2.4311]
[1767103545860,2.3779,2970.1,2969.2,3.36788859]
[1767103546451,2.3779,2970.1,2969.1,5.79907331]
[1767103546640,2.3779,2970.1,2969.4,3.36767971]
[1767103546967,3.3665981,2970.4,2969.5,2.3914]
[1767103547163,2.71964461,2970.5,2969.7,2.3914]
[1767103547366,3.60264461,2970.5,2969.7,2.3914]
[1767103547666,3.2659,2970.5,2969.7,2.3914]
[1767103548165,3.2659,2970.5,2969.8,2.3914]
[1767103549674,2.3829,2970.5,2969.8,2.3914]
[1767103549977,2.3829,2970.4,2969.4,5.7590837]
[1767103550172,0.66333864,2970.4,2969.4,5.7590837]
[1767103550374,2.3829,2970.3,2969.5,2.3914]
[1767103551849,2.3829,2970.3,2969.6,3.36745689]
[1767103552243,2.3829,2970.3,2969.6,2.3914]
[1767103555256,2.3829,2970.3,2969.6,9.12625723]
[1767103555462,2.3829,2970.3,2969.7,2.42507343]
[1767103555638,2.3839,2970.6,2969.7,2.3914]
[1767103555845,0.001,2970.4,2969.7,2.3914]
[1767103556068,0.001,2970.4,2969.9,2.3914]
[1767103556659,2.3839,2970.6,2969.9,2.3914]
[1767103557168,2.3829,2970.5,2969.9,2.3914]
[1767103557473,2.3829,2970.5,2969.2,2.3914]
[1767103557650,2.3829,2970.3,2969.1,2.3914]
[1767103557850,2.3829,2970.3,2969.4,2.28]
[1767103558175,2.3829,2970.3,2969.1,2.28]
[1767103558176,2.4713,2970.2,2969.1,2.28]
[1767103559242,3.3543,2970.5,2969.3,2.28]
[1767103559443,3.3543,2970.5,2969.5,2.28]
[1767103559866,2.4713,2970.5,2969.5,2.28]
[1767103560083,3.3543,2970.5,2969.5,2.28]
[1767103560381,3.3543,2970.5,2969.7,2.28]
[1767103560556,2.4713,2970.5,2969.7,2.28]
[1767103560977,0.884,2970.6,2969.7,2.28]
[1767103561191,0.001,2970.6,2969.9,2.28]
[1767103561346,0.001,2971.2,2969.9,2.28]
[1767103561545,0.001,2971.2,2969.9,2.31367116]
[1767103561942,0.001,2971.2,2970.0,2.28]
[1767103561943,2.4713,2971.0,2970.0,2.28]
[1767103562141,2.4713,2971.0,2970.1,2.28]
[1767103562550,3.3543,2971.0,2970.1,2.28]
[1767103562763,0.001,2971.2,2970.2,2.28]
[1767103562949,0.001,2971.5,2970.2,2.28]
[1767103564076,0.001,2971.8,2970.2,2.28]
[1767103564280,2.4723,2971.6,2970.4,2.28]
[1767103564451,2.4713,2971.4,2970.4,2.28]
[1767103564654,0.001,2971.6,2970.4,2.28]
[1767103565172,0.001,2971.6,2970.6,2.28]
[1767103565375,2.4723,2971.6,2970.6,2.28]
[1767103565578,2.80793,2971.6,2970.6,2.28]
[1767103566274,6.17312799,2971.6,2970.7,2.28]
[1767103566474,2.4713,2971.4,2970.1,2.28]
[1767103566804,2.4713,2971.2,2970.1,2.28]
[1767103567273,2.4713,2971.2,2969.8,2.28]
[1767103567473,2.4713,2971.0,2969.8,5.64716394]
[1767103568092,2.4713,2970.8,2969.5,2.28]
[1767103568379,2.4713,2970.6,2969.5,2.28]
[1767103568746,2.4713,2970.6,2969.5,5.64756157]
[1767103568952,2.4713,2970.6,2969.5,5.64751571]
[1767103569154,2.4713,2970.6,2969.5,2.28]
[1767103569392,2.4713,2970.4,2969.5,2.28]
[1767103570393,5.83788088,2970.4,2969.5,2.28]
[1767103570591,2.4713,2970.4,2969.5,2.28]
[1767103570958,5.83789383,2970.4,2969.5,2.28]
[1767103571291,2.4713,2970.3,2969.4,0.002]
[1767103571491,4.27474877,2970.2,2969.4,0.002]
[1767103572088,2.4713,2970.1,2969.5,0.002]
[1767103572494,5.83822936,2970.1,2969.5,0.002]
[1767103573260,2.5,2970.1,2969.5,0.002]
[1767103573695,4.9713,2970.1,2969.5,0.002]
[1767103573861,5.89340948,2970.1,2969.5,0.002]
[1767103574060,3.39340948,2970.1,2969.5,0.002]
[1767103574260,4.27640948,2970.1,2969.5,0.002]
[1767103576071,4.27640948,2970.1,2969.2,5.60188683]
[1767103576390,0.883,2970.2,2969.3,2.442]
[1767103576870,2.3525,2970.5,2969.5,2.442]
[1767103577182,2.3525,2970.5,2969.7,2.442]
[1767103577568,0.883,2970.4,2969.7,2.442]
[1767103577769,3.2355,2970.5,2969.7,2.442]
[1767103577965,0.32355,2970.4,2969.7,2.442]
[1767103578167,0.883,2970.5,2969.7,2.442]
[1767103578372,3.383,2970.5,2969.7,2.442]
[1767103578672,0.883,2970.5,2969.7,2.442]
[1767103578875,4.24947219,2970.5,2969.7,2.442]
[1767103579171,2.3525,2970.4,2969.7,2.442]
[1767103579371,3.01269722,2970.3,2969.7,2.442]
[1767103580192,2.3525,2970.3,2969.7,2.442]
[1767103580390,0.883,2970.5,2969.7,2.442]
[1767103580693,2.3525,2970.5,2969.7,2.442]
[1767103580892,2.3525,2970.5,2969.8,2.4756723]
[1767103581095,0.883,2970.6,2969.9,2.442]
[1767103581301,3.2355,2970.6,2969.9,2.442]
[1767103581605,2.3525,2970.5,2969.7,3.36731578]
[1767103581771,2.3525,2970.5,2969.6,5.81140018]
[1767103581973,2.3525,2970.5,2969.6,2.444]
[1767103582479,2.3525,2970.5,2969.6,5.81141931]
[1767103582800,2.3525,2970.5,2969.0,3.37011493]
[1767103582801,2.3525,2970.5,2969.2,2.442]
[1767103582969,0.47192746,2970.4,2969.6,2.442]
[1767103583170,0.0487,2970.4,2969.6,2.442]
[1767103583368,0.0487,2970.3,2969.6,2.442]
[1767103584497,0.0487,2970.3,2969.2,2.442]
[1767103585069,6.73295655,2970.5,2969.2,2.442]
[1767103585070,0.3027,2970.0,2969.2,2.442]
[1767103587586,0.5578,2969.9,2969.2,2.442]
[1767103588301,1.4408,2969.9,2969.2,2.442]
[1767103588686,0.6408,2970.7,2969.3,2.442]
[1767103588885,0.6408,2970.5,2969.3,2.47567797]
[1767103589487,0.6408,2970.5,2969.4,6.7353674]
[1767103589704,0.6408,2970.5,2969.5,2.4756757]
[1767103589881,0.883,2970.6,2969.5,2.4756757]
[1767103590219,0.883,2970.6,2969.6,2.442]
[1767103590377,0.883,2970.6,2969.8,2.442]
[1767103590922,0.7226,2970.8,2969.8,2.442]
[1767103591409,10.55888014,2971.0,2969.8,2.442]
[1767103591577,11.44198014,2971.0,2970.0,2.442]
[1767103591774,12.58617815,2971.0,2970.0,2.442]
[1767103592205,9.22029801,2971.0,2970.0,2.442]
[1767103592407,0.9617,2971.4,2970.0,2.442]
[1767103592586,1.8447,2971.3,2970.0,2.442]
[1767103593807,1.8447,2971.3,2970.2,2.442]
[1767103594020,0.001,2971.5,2970.2,2.442]
[1767103595400,0.001,2971.8,2970.3,2.442]
[1767103595606,0.001,2971.9,2970.4,13.4661998]
[1767103595811,0.001,2971.9,2970.5,2.442]
[1767103595995,0.001,2971.9,2970.4,13.4661998]
[1767103595996,0.001,2971.9,2970.7,2.442]
[1767103596616,0.001,2972.1,2970.7,2.442]
[1767103596985,0.001,2971.3,2970.7,2.442]
[1767103597311,2.1534,2971.8,2970.4,2.442]
[1767103597611,4.71092433,2972.1,2970.8,2.442]
[1767103597817,1.3453,2972.0,2970.8,2.442]
[1767103598215,1.3453,2971.8,2970.6,2.442]
[1767103598515,1.4181,2971.6,2970.6,2.442]
[1767103598818,0.001,2972.1,2970.8,2.442]
[1767103598991,0.001,2972.1,2970.8,2.45212196]
[1767103599185,0.001,2972.1,2971.1,2.442]
[1767103599383,0.001,2972.4,2971.3,2.442]
[1767103599583,0.001,2972.4,2971.4,6.73083394]
[1767103599797,0.001,2972.4,2971.5,2.442]
[1767103600086,0.001,2972.5,2971.5,2.442]
[1767103601723,0.001,2972.5,2971.7,2.442]
[1767103601902,0.001,2972.5,2971.8,2.442]
[1767103602293,1.6337,2972.5,2971.8,2.442]
[1767103602493,0.883,2972.4,2971.1,2.442]
[1767103602713,1.7018,2972.3,2971.1,2.442]
[1767103603127,0.001,2972.5,2971.6,2.442]
[1767103603329,0.17138,2972.5,2971.6,2.442]
[1767103603626,1.94138,2972.5,2971.6,2.442]
[1767103603827,1.77,2972.3,2971.6,2.442]
[1767103604696,1.77,2972.3,2971.2,2.442]
[1767103604919,1.77,2972.3,2971.7,2.442]
[1767103605226,1.8373,2972.2,2971.3,5.80745493]
[1767103605410,1.8373,2972.2,2971.4,2.442]
[1767103605719,1.8373,2972.2,2971.2,3.36557545]
[1767103605720,1.9037,2972.1,2971.2,3.36557545]
[1767103606631,1.9037,2972.1,2971.3,3.36551022]
[1767103606802,1.9037,2972.1,2971.2,6.78180609]
[1767103608715,1.9037,2972.1,2971.3,3.4162]
[1767103609506,2.2348,2972.0,2970.8,3.4162]
[1767103609936,2.2348,2971.8,2970.8,6.78227562]
[1767103610119,2.2348,2971.7,2970.8,3.4162]
[1767103610436,2.2348,2971.5,2970.6,3.36623314]
[1767103610739,2.2348,2971.5,2970.6,6.78243314]
[1767103610912,2.2348,2971.5,2970.7,3.36617087]
[1767103611113,2.2348,2971.5,2970.6,6.78250986]
[1767103611308,2.2348,2971.5,2970.6,3.4162]
[1767103611615,2.577758,2971.5,2970.6,6.7844394]
[1767103612716,3.70826546,2971.5,2970.6,6.7844394]
[1767103612917,2.4163,2971.4,2970.6,6.7844394]
[1767103613630,2.4163,2971.4,2970.6,3.4182]
[1767103614250,2.4752,2971.3,2970.6,3.4182]
[1767103614420,3.0935607,2971.3,2970.6,3.4182]
[1767103614937,3.0935607,2971.3,2970.6,0.002]
[1767103615145,2.0361,2971.2,2970.3,3.4162]
[1767103615449,2.0361,2971.2,2970.4,6.78265955]
[1767103615635,2.9191,2971.2,2970.5,3.4162]
[1767103616146,0.6183607,2971.3,2970.7,3.4162]
[1767103616335,1.5013607,2971.3,2970.7,3.4162]
[1767103616645,2.1722,2971.2,2970.3,3.36659587]
[1767103616823,2.1722,2971.1,2970.3,6.78279587]
[1767103617250,2.1722,2971.1,2970.1,0.883]
[1767103617449,2.1722,2971.1,2970.0,3.4162]
[1767103618322,1.0404519,2971.2,2970.0,3.4162]
[1767103618323,3.6804,2970.9,2970.0,3.4162]
[1767103618657,3.6804,2970.7,2970.0,3.4162]
[1767103619147,4.13674,2970.7,2970.0,3.4162]
[1767103619943,4.13674,2970.7,2969.6,3.36741963]
[1767103619944,4.13674,2970.7,2969.6,3.6946]
[1767103620321,3.6804,2970.6,2969.6,7.06197515]
[1767103620522,0.883,2970.9,2969.7,4.61127343]
[1767103620726,3.6804,2971.0,2970.1,3.6946]
[1767103620943,4.57735464,2971.0,2970.1,3.6946]
[1767103621239,4.57735464,2971.0,2970.0,0.002]
[1767103621541,4.57735464,2971.0,2970.0,3.6966]
[1767103621744,3.6804,2970.8,2969.7,3.6946]
[1767103622048,3.6804,2970.8,2969.5,0.002]
[1767103622217,3.6804,2970.6,2969.5,0.002]
[1767103622413,3.6804,2970.4,2969.5,0.002]
[1767103622613,4.5634,2970.4,2969.5,0.002]
[1767103623240,4.5634,2970.4,2969.5,3.6966]
[1767103624645,3.6804,2970.3,2969.5,7.06416969]
[1767103624844,3.6804,2970.3,2969.6,3.6946]
[1767103625018,4.5634,2970.6,2969.8,3.6946]
[1767103626050,0.883,2971.0,2969.8,3.6946]
[1767103626244,3.6804,2970.9,2969.8,3.6946]
[1767103626550,3.6804,2970.9,2969.6,3.6946]
[1767103626864,3.6804,2970.9,2969.8,3.6946]
[1767103628439,4.5634,2970.9,2969.8,3.6966]
[1767103628849,3.6804,2970.9,2969.9,6.73423346]
[1767103629020,4.5634,2970.9,2970.0,3.6946]
[1767103629438,3.6804,2970.8,2969.8,0.002]
[1767103629821,3.6804,2970.8,2969.6,3.6946]
[1767103630045,0.883,2970.7,2969.8,3.6946]
[1767103630226,3.6804,2970.7,2969.8,3.367208]
[1767103630427,4.5634,2970.6,2969.9,3.6946]
[1767103630744,0.01112196,2971.3,2970.0,0.03367003]
[1767103630745,3.6804,2971.2,2970.0,0.03367003]
[1767103630919,3.6804,2971.0,2970.2,3.6946]
[1767103631550,4.5634,2971.0,2970.2,3.6946]
[1767103631922,3.6804,2971.0,2970.2,3.6946]
[1767103632134,4.5634,2971.0,2970.2,3.6946]
[1767103633140,3.6804,2970.9,2970.2,3.6946]
[1767103633551,3.6804,2970.9,2969.9,3.36709104]
[1767103633731,3.6804,2970.9,2970.0,3.36698012]
[1767103634230,3.6804,2970.9,2970.2,3.6946]
[1767103638326,3.6804,2970.9,2970.3,4.1278]
[1767103638327,3.6814,2970.9,2970.3,4.1278]
[1767103639340,7.04738602,2970.9,2970.3,4.1278]
[1767103639659,3.6814,2970.9,2970.3,4.1278]
[1767103640044,0.001,2970.9,2970.4,4.1278]
[1767103640451,4.3661,2970.9,2970.4,4.1278]
[1767103641835,4.3661,2972.1,2970.6,4.1278]
[1767103642035,4.3651,2971.6,2970.1,4.1278]
[1767103642360,5.2481,2971.6,2970.3,4.1278]
[1767103642859,5.25822196,2971.6,2970.0,4.1278]
[1767103643152,5.2481,2971.6,2970.1,4.1278]
[1767103643459,5.2481,2971.6,2970.1,7.49466566]
[1767103643627,5.2481,2971.6,2970.1,4.1278]
[1767103643828,4.3651,2971.4,2970.1,4.1278]
[1767103644951,4.3651,2971.2,2970.1,4.1278]
[1767103645170,10.09659069,2971.3,2970.1,4.1278]
[1767103645171,4.3651,2971.0,2970.1,4.1278]
[1767103645634,4.3651,2971.0,2969.8,0.002]
[1767103646567,4.3651,2970.8,2970.0,4.1278]
[1767103646953,7.73122298,2970.8,2970.0,4.1278]
[1767103647132,4.3651,2970.7,2970.0,4.1278]
[1767103648060,4.3651,2970.5,2969.5,0.002]
[1767103648356,0.883,2970.6,2969.5,0.002]
[1767103648357,4.3651,2970.3,2969.5,0.002]
[1767103648843,4.3651,2970.3,2969.5,3.36955886]
[1767103649047,4.3651,2970.3,2969.5,4.1298]
[1767103651541,4.3651,2970.3,2969.5,7.49730446]
[1767103651740,4.3651,2970.3,2969.6,4.1278]
[1767103653433,4.3651,2970.3,2969.6,7.49524127]
[1767103653635,4.3651,2970.3,2969.7,4.16147343]
[1767103654139,4.3651,2970.3,2969.7,4.1278]
[1767103655762,4.3651,2970.3,2969.7,3.36730417]
[1767103655930,4.3651,2970.5,2969.8,4.1278]
[1767103656731,6.73151358,2971.1,2970.0,4.1278]
[1767103657061,5.2481,2971.0,2970.0,4.1278]
[1767103658067,4.3651,2970.8,2969.7,7.49510417]
[1767103658762,4.3651,2970.8,2969.7,3.36730417]
[1767103658967,4.3651,2970.6,2969.8,4.1278]
[1767103660078,4.3651,2970.6,2969.7,4.1278]
[1767103660262,4.3651,2970.6,2969.9,4.1278]
[1767103661874,4.3651,2970.8,2969.9,4.1278]
[1767103662174,4.3651,2970.8,2970.1,4.1278]
[1767103662853,0.001,2971.0,2970.1,4.1278]
[1767103662854,4.3661,2971.0,2970.1,4.1278]
[1767103663882,0.001,2971.0,2970.1,4.1278]
[1767103664079,4.55950012,2971.5,2970.1,4.1278]
[1767103664080,4.3651,2971.9,2970.4,6.7330999]
[1767103664264,4.3651,2971.9,2970.5,4.1278]
[1767103664573,4.3651,2971.9,2970.7,4.1278]
[1767103665054,4.3651,2971.8,2970.7,4.1278]
[1767103665263,4.3651,2971.8,2970.9,4.1278]
[1767103666181,4.3651,2971.8,2971.0,4.947]
[1767103666384,4.9724,2971.7,2971.0,4.947]
[1767103666873,5.80614729,2971.7,2971.0,4.947]
[1767103667646,5.80614729,2971.7,2970.7,5.83]
[1767103668260,4.9724,2971.6,2970.7,9.1961595]
[1767103668462,4.9724,2971.6,2970.7,5.83]
[1767103668648,4.9724,2971.6,2970.7,9.19617519]
[1767103669054,3.7834,2971.4,2970.6,8.6e-06]
[1767103669878,3.7834,2971.4,2970.7,3.36617519]
[1767103670050,3.7834,2971.4,2970.8,4.947]
[1767103671583,3.7834,2971.4,2970.8,8.31307359]
[1767103671920,3.7834,2971.4,2970.9,4.947]
[1767103672488,3.7834,2971.4,2970.6,8.6e-06]
[1767103672685,0.001,2971.6,2970.6,0.03367183]
[1767103672887,0.8668,2971.5,2970.7,4.947]
[1767103673101,0.001,2971.6,2970.7,4.947]
[1767103673494,0.8983,2971.6,2970.7,4.947]
[1767103674570,0.8983,2971.6,2970.9,4.947]
[1767103676587,0.001,2971.6,2971.0,3.36587007]
[1767103676902,0.001,2971.6,2971.1,4.947]
[1767103677365,0.001,2972.1,2971.1,4.947]
[1767103677366,0.883,2971.9,2971.1,4.947]
[1767103678410,1.9396,2972.1,2971.1,4.947]
[1767103678571,1.9396,2972.1,2971.2,3.36564351]
[1767103678769,0.884,2972.1,2971.3,4.885]
[1767103678984,0.001,2972.1,2971.3,4.885]
[1767103679215,0.883,2972.3,2971.3,4.885]
[1767103679703,0.001,2972.5,2971.2,10.97993053]
[1767103679868,0.001,2972.7,2971.3,4.885]
[1767103680266,0.001,2972.7,2971.3,4.9186553]
[1767103680669,0.001,2972.7,2971.5,4.885]
[1767103680869,1.1423,2972.6,2971.5,4.885]
[1767103681088,0.883,2972.5,2971.5,4.885]
[1767103681405,1.1423,2972.4,2971.5,4.885]
[1767103681620,0.883,2972.5,2971.5,4.885]
[1767103681621,0.20253,2972.3,2971.5,4.885]
[1767103681911,0.883,2972.3,2971.5,4.885]
[1767103682410,0.884,2972.7,2971.5,4.885]
[1767103682773,0.884,2972.7,2971.4,0.03365416]
[1767103682774,1.1952,2972.6,2971.7,4.885]
[1767103683386,1.1952,2972.6,2971.4,4.885]
[1767103683681,1.1952,2972.6,2971.1,8.25069334]
[1767103683882,10.97591831,2972.7,2971.4,4.885]
[1767103683883,0.001,2972.3,2971.4,4.885]
[1767103684198,0.001,2972.3,2971.6,4.885]
[1767103684702,0.001,2972.3,2971.5,6.73059342]
[1767103684703,0.001,2972.3,2971.8,4.885]
[1767103685313,2.1051,2972.7,2971.7,6.73015444]
[1767103685533,2.1051,2972.7,2971.8,4.885]
[1767103686714,0.884,2972.7,2972.0,4.885]
[1767103687016,0.001,2972.7,2972.0,4.885]
[1767103688016,0.001,2972.8,2972.0,4.885]
[1767103688316,0.883,2973.0,2972.0,4.885]
[1767103688489,0.884,2973.3,2972.0,4.885]
[1767103688684,0.001,2973.5,2972.3,4.885]
[1767103688893,1.3495,2973.5,2972.3,4.885]
[1767103690486,1.3965,2973.5,2972.3,4.885]
[1767103690689,1.3965,2973.5,2972.2,6.72902226]
[1767103690690,1.3955,2973.4,2972.5,4.885]
[1767103690891,0.001,2973.5,2972.5,4.885]
[1767103691096,0.884,2973.5,2972.4,4.885]
[1767103691715,0.001,2973.6,2972.8,4.885]
[1767103691929,0.001,2973.7,2972.7,6.69353201]
[1767103691930,0.001,2973.7,2973.0,4.885]
[1767103692234,0.001,2973.9,2973.0,4.885]
[1767103692829,0.001,2973.9,2973.2,4.885]
[1767103693193,2.3043,2974.3,2973.2,4.885]
[1767103693394,2.3662,2974.6,2973.2,4.885]
[1767103693805,5.72802195,2974.6,2973.2,4.885]
[1767103694009,2.3892,2974.5,2973.2,4.885]
[1767103694473,2.3892,2974.5,2973.4,4.885]
[1767103694595,2.4119,2974.3,2973.4,4.885]
[1767103694917,2.4119,2974.1,2973.4,4.885]
[1767103695123,5.77414867,2974.2,2973.4,4.885]
[1767103695419,2.4119,2974.2,2973.4,4.885]
[1767103695597,0.57740587,2974.1,2973.4,4.885]
[1767103696200,3.04420587,2974.1,2973.4,4.885]
[1767103696507,3.04420587,2974.1,2973.1,6.2684]
[1767103696907,2.4884,2974.0,2973.1,9.63182694]
[1767103697128,2.4884,2974.0,2973.2,5.3854]